fUST/lending_fUST_20250514
["ID","MTS","AMOUNT","RATE_DAILY","PERIOD"]
[360928101,1747152440095,-5000.0,0.00012475,2]
[360928102,1747152440117,-1605.47506757,0.00012601,2]
[360928104,1747152442309,-147.89758714,0.00012601,2]
[360928105,1747152442331,-1200.0,0.00012826,2]
[360928106,1747152442352,-300.0,0.00012826,2]
[360928107,1747152442374,-300.0,0.00012826,2]
[360928108,1747152442712,-500.0,0.00012827,2]
[360928109,1747152442737,-420.91372219,0.00012827,2]
[360928110,1747152442760,-500.0,0.00012827,2]
[360928111,1747152442788,-550.67947925,0.00012827,2]
[360928112,1747152442811,-500.0,0.00012827,2]
[360928113,1747152442834,-233.29394448,0.00012827,2]
[360928114,1747152442856,-500.0,0.00012827,2]
[360928115,1747152442879,-500.0,0.00012827,2]
[360928116,1747152442902,-500.0,0.00012827,2]
[360928117,1747152442928,-500.0,0.00012827,2]
[360928118,1747152442951,-500.0,0.00012827,2]
[360928119,1747152442973,-408.37275228,0.00012827,2]
[360928120,1747152444096,-91.62724772,0.00012827,2]
[360928121,1747152444121,-500.0,0.00012827,2]
[360928122,1747152444145,-196.53211627,0.00012827,2]
[360928296,1747152632015,-246.62830304,0.00012375,2]
[360928299,1747152632025,-1004.1163716,0.000125,2]
[360928301,1747152632034,-200.3166329,0.00012599,2]
[360928303,1747152632045,-1404.25634751,0.00012599,2]
[360928305,1747152632055,-5000.0,0.00012699,2]
[360928307,1747152632065,-1200.0,0.00012823,2]
[360928309,1747152632075,-300.0,0.00012824,2]
[360928311,1747152632084,-300.0,0.00012824,2]
[360928313,1747152632093,-300.0,0.00012824,2]
[360928315,1747152632104,-300.0,0.00012824,2]
[360928317,1747152632113,-500.0,0.00012825,2]
[360928319,1747152632123,-500.0,0.00012825,2]
[360928320,1747152632133,-500.0,0.00012825,2]
[360928321,1747152632142,-558.68184439,0.00012825,2]
[360928322,1747152632152,-253.86110492,0.00012825,2]
[360928323,1747152632161,-500.0,0.00012825,2]
[360928324,1747152632170,-551.65409852,0.00012825,2]
[360928325,1747152632180,-558.68184439,0.00012825,2]
[360928326,1747152632190,-500.0,0.00012825,2]
[360928327,1747152632199,-558.68184439,0.00012825,2]
[360928328,1747152632209,-500.0,0.00012825,2]
[360928329,1747152632218,-558.68184439,0.00012825,2]
[360928330,1747152632228,-500.0,0.00012825,2]
[360928331,1747152632238,-558.68184439,0.00012825,2]
[360928332,1747152632247,-500.0,0.00012825,2]
[360928333,1747152632257,-558.68184439,0.00012825,2]
[360928334,1747152632266,-500.0,0.00012825,2]
[360928335,1747152632276,-558.68184439,0.00012825,2]
[360928336,1747152632285,-500.0,0.00012825,2]
[360928337,1747152632295,-558.68184439,0.00012825,2]
[360928338,1747152632304,-500.0,0.00012825,2]
[360928339,1747152632313,-558.68184439,0.00012825,2]
[360928340,1747152632322,-500.0,0.00012825,2]
[360928341,1747152632331,-558.68184439,0.00012825,2]
[360928342,1747152632341,-303.65532805,0.00012825,2]
[360928343,1747152632350,-558.68184439,0.00012825,2]
[360928344,1747152632359,-500.0,0.00012825,2]
[360928345,1747152632368,-558.68184439,0.00012825,2]
[360928346,1747152632378,-558.68184439,0.00012825,2]
[360928347,1747152632387,-500.0,0.00012825,2]
[360928348,1747152632396,-558.68184439,0.00012825,2]
[360928349,1747152632405,-500.0,0.00012825,2]
[360928350,1747152632415,-558.68184439,0.00012825,2]
[360928351,1747152632424,-500.0,0.00012825,2]
[360928352,1747152632434,-558.68184439,0.00012825,2]
[360928353,1747152632444,-558.68184439,0.00012825,2]
[360928354,1747152632453,-500.0,0.00012825,2]
[360928355,1747152632462,-558.68184439,0.00012825,2]
[360928356,1747152632471,-500.0,0.00012825,2]
[360928357,1747152632480,-558.68184439,0.00012825,2]
[360928358,1747152632490,-500.0,0.00012825,2]
[360928359,1747152632500,-558.68184439,0.00012825,2]
[360928360,1747152632510,-558.68184439,0.00012825,2]
[360928361,1747152632519,-558.68184439,0.00012825,2]
[360928362,1747152632528,-558.68184439,0.00012825,2]
[360928363,1747152632537,-558.68184439,0.00012825,2]
[360928364,1747152632546,-558.68184439,0.00012825,2]
[360928365,1747152632555,-558.68184439,0.00012825,2]
[360928366,1747152632565,-558.68184439,0.00012825,2]
[360928367,1747152632574,-558.68184439,0.00012825,2]
[360928368,1747152632584,-558.68184439,0.00012825,2]
[360928369,1747152632594,-558.68184439,0.00012825,2]
[360928370,1747152632603,-558.68184439,0.00012825,2]
[360928371,1747152632613,-558.68184439,0.00012825,2]
[360928373,1747152632622,-558.68184439,0.00012825,2]
[360928375,1747152632632,-558.68184439,0.00012825,2]
[360928376,1747152632642,-558.68184439,0.00012825,2]
[360928379,1747152632652,-558.68184439,0.00012825,2]
[360928381,1747152632661,-558.68184439,0.00012825,2]
[360928382,1747152632671,-558.68184439,0.00012825,2]
[360928384,1747152632680,-558.68184439,0.00012825,2]
[360928386,1747152632690,-558.68184439,0.00012825,2]
[360928388,1747152632700,-558.68184439,0.00012825,2]
[360928390,1747152632709,-558.68184439,0.00012825,2]
[360928391,1747152632719,-558.68184439,0.00012825,2]
[360928392,1747152632728,-558.68184439,0.00012825,2]
[360928394,1747152632738,-558.68184439,0.00012825,2]
[360928396,1747152632747,-558.68184439,0.00012825,2]
[360928398,1747152632756,-558.68184439,0.00012825,2]
[360928400,1747152632766,-558.68184439,0.00012825,2]
[360928401,1747152632776,-3490.73582565,0.00012825,2]
[360928403,1747152632785,-3490.73582565,0.00012825,2]
[360928404,1747152632795,-3490.73582565,0.00012825,2]
[360928405,1747152632804,-3490.73582565,0.00012825,2]
[360928406,1747152632814,-3490.73582565,0.00012825,2]
[360928407,1747152632824,-3490.73582565,0.00012825,2]
[360928408,1747152632833,-3490.73582565,0.00012825,2]
[360928409,1747152632842,-3490.73582565,0.00012825,2]
[360928410,1747152632852,-3490.73582565,0.00012825,2]
[360928411,1747152632862,-3490.73582565,0.00012825,2]
[360928412,1747152632871,-3490.73582565,0.00012825,2]
[360928413,1747152632881,-3490.73582565,0.00012825,2]
[360928414,1747152632890,-3490.73582565,0.00012825,2]
[360928415,1747152632900,-3490.73582565,0.00012825,2]
[360928416,1747152632910,-3490.73582565,0.00012825,2]
[360928417,1747152632920,-3490.73582565,0.00012825,2]
[360928418,1747152632930,-3490.73582565,0.00012825,2]
[360928419,1747152632942,-3490.73582565,0.00012825,2]
[360928420,1747152632952,-3490.73582565,0.00012825,2]
[360928421,1747152632962,-3490.73582565,0.00012825,2]
[360928422,1747152632974,-3490.73582565,0.00012825,2]
[360928423,1747152632983,-3490.73582565,0.00012825,2]
[360928424,1747152632993,-3490.73582565,0.00012825,2]
[360928425,1747152633002,-3490.73582565,0.00012825,2]
[360928426,1747152633013,-3490.73582565,0.00012825,2]
[360928427,1747152633023,-3490.73582565,0.00012825,2]
[360928428,1747152633033,-3490.73582565,0.00012825,2]
[360928429,1747152633044,-3490.73582565,0.00012825,2]
[360928430,1747152633054,-3490.73582565,0.00012825,2]
[360928431,1747152633064,-3490.73582565,0.00012825,2]
[360928432,1747152633074,-3490.73582565,0.00012825,2]
[360928433,1747152633085,-3490.73582565,0.00012825,2]
[360928434,1747152633095,-500.0,0.00012825,2]
[360928435,1747152633105,-381.46165663,0.00012825,2]
[360928436,1747152633115,-189.46946149,0.00012825,2]
[360928437,1747152633126,-312.80268297,0.00012825,2]
[360928438,1747152633137,-3455.82846739,0.00012825,2]
[360928439,1747152633148,-3455.82846739,0.00012825,2]
[360928440,1747152633158,-3455.82846739,0.00012825,2]
[360928441,1747152633168,-3455.82846739,0.00012825,2]
[360928442,1747152633179,-3455.82846739,0.00012825,2]
[360928443,1747152633189,-3455.82846739,0.00012825,2]
[360928444,1747152633201,-3455.82846739,0.00012825,2]
[360928445,1747152633211,-3455.82846739,0.00012825,2]
[360928446,1747152633222,-3455.82846739,0.00012825,2]
[360928447,1747152633232,-3455.82846739,0.00012825,2]
[360928448,1747152633242,-320.278942,0.00012826,2]
[360928449,1747152633252,-24018.4276947,0.0001283,2]
[360928450,1747152633263,-5000.0,0.00012956,2]
[360928451,1747152633273,-5000.0,0.00012956,2]
[360928452,1747152633284,-4188.65989423,0.00012956,2]
[360928453,1747152633299,-811.34010577,0.00012956,2]
[360928454,1747152633309,-5000.0,0.00012956,2]
[360928455,1747152633319,-207.4,0.00012956,2]
[360928456,1747152633329,-500.0,0.00012972,2]
[360928457,1747152633339,-500.0,0.00012972,2]
[360928458,1747152633348,-221.37,0.00012972,2]
[360928459,1747152633358,-224.34,0.00012972,2]
[360928460,1747152633368,-1944.61699863,0.00013,2]
[360928461,1747152633395,-10453.98497487,0.00013,2]
[360928462,1747152633405,-153.0,0.00013078,2]
[360928463,1747152633415,-5000.0,0.00013142,2]
[360928464,1747152633425,-1600.0,0.00013506,2]
[360928465,1747152633435,-652.61296533,0.0001355,2]
[360928466,1747152633447,-153.0,0.000136,2]
[360928467,1747152633457,-310.0591789,0.000136,2]
[360928468,1747152633467,-153.0,0.000136,2]
[360928469,1747152633477,-153.0,0.000136,2]
[360928470,1747152633487,-500.0,0.00013673,2]
[360928471,1747152633498,-500.0,0.00013673,2]
[360928472,1747152633507,-500.68659326,0.00013673,2]
[360928473,1747152633517,-504.85735693,0.00013673,2]
[360928474,1747152633527,-500.0,0.00013673,2]
[360928475,1747152633536,-500.0,0.00013673,2]
[360928476,1747152633817,-564.69379348,0.00013673,2]
[360928477,1747152633827,-408.36227071,0.00013673,2]
[360928478,1747152633836,-500.86631556,0.00013673,2]
[360928479,1747152633846,-500.0,0.00013673,2]
[360928480,1747152633855,-500.0,0.00013673,2]
[360928481,1747152633865,-500.0,0.00013673,2]
[360928482,1747152633875,-501.65815357,0.00013673,2]
[360928483,1747152633884,-500.0,0.00013673,2]
[360928484,1747152633894,-500.0,0.00013673,2]
[360928485,1747152633903,-500.0,0.00013673,2]
[360928486,1747152633913,-223.58282172,0.00013673,2]
[360928487,1747152633922,-500.0,0.00013673,2]
[360928488,1747152633932,-157.40003586,0.00013673,2]
[360928489,1747152633943,-500.0,0.00013673,2]
[360928490,1747152633953,-160.8942035,0.00013673,2]
[360928491,1747152633965,-502.68646604,0.00013673,2]
[360928492,1747152633976,-500.0,0.00013673,2]
[360928493,1747152633985,-500.0,0.00013673,2]
[360928494,1747152633996,-500.0,0.00013673,2]
[360928495,1747152634005,-500.0,0.00013673,2]
[360928496,1747152634016,-502.93805155,0.00013673,2]
[360928497,1747152634026,-500.0,0.00013673,2]
[360928498,1747152634036,-500.36750895,0.00013673,2]
[360928499,1747152634048,-500.0,0.00013673,2]
[360928500,1747152634059,-501.61233605,0.00013673,2]
[360928501,1747152634068,-554.10124577,0.00013673,2]
[360928502,1747152634078,-224.598,0.00013673,2]
[360928503,1747152634088,-151.0,0.0001369,2]
[360928504,1747152634097,-5000.0,0.0001369,2]
[360928505,1747152634107,-400.0,0.00013698,2]
[360928506,1747152634117,-399.766597,0.00013698,2]
[360928507,1747152634127,-399.766597,0.00013698,2]
[360928508,1747152634137,-399.766597,0.00013698,2]
[360928509,1747152634147,-399.766597,0.00013698,2]
[360928510,1747152634156,-162.94943,0.00013698,2]
[360928511,1747152634166,-598.59,0.00013698,2]
[360928512,1747152634176,-1302.98,0.00013698,2]
[360928513,1747152634186,-400.0,0.00013698,2]
[360928514,1747152634197,-400.0,0.00013698,2]
[360928515,1747152634206,-400.0,0.00013698,2]
[360928516,1747152634215,-400.0,0.00013698,2]
[360928517,1747152634225,-400.0,0.00013698,2]
[360928518,1747152634235,-400.0,0.00013698,2]
[360928519,1747152634244,-400.0,0.00013698,2]
[360928520,1747152634254,-400.0,0.00013698,2]
[360928521,1747152634265,-400.0,0.00013698,2]
[360928522,1747152634274,-400.0,0.00013698,2]
[360928523,1747152634284,-400.0,0.00013698,2]
[360928524,1747152634294,-151.0,0.00013698,2]
[360928525,1747152634304,-400.0,0.00013698,2]
[360928526,1747152634315,-151.0,0.00013698,2]
[360928527,1747152634326,-151.0,0.00013698,2]
[360928528,1747152634336,-711.92,0.00013698,2]
[360928529,1747152634346,-400.0,0.00013698,2]
[360928530,1747152634356,-400.0,0.00013698,2]
[360928531,1747152634366,-151.0,0.00013698,2]
[360928532,1747152634376,-151.0,0.00013698,2]
[360928533,1747152634386,-151.0,0.00013698,2]
[360928534,1747152634396,-400.0,0.00013698,2]
[360928535,1747152634406,-400.0,0.00013698,2]
[360928536,1747152634416,-395.58041195,0.00013698,2]
[360928537,1747152634430,-4.41958805,0.00013698,2]
[360928538,1747152634441,-400.0,0.00013698,2]
[360928539,1747152634451,-431.64,0.00013698,2]
[360928540,1747152634462,-400.0,0.00013698,2]
[360928541,1747152634472,-400.0,0.00013698,2]
[360928542,1747152634482,-400.0,0.00013698,2]
[360928543,1747152634492,-400.0,0.00013698,2]
[360928544,1747152634501,-400.0,0.00013698,2]
[360928545,1747152634511,-400.0,0.00013698,2]
[360928546,1747152634521,-1479.0,0.00013698,2]
[360928547,1747152634531,-400.0,0.00013698,2]
[360928548,1747152634541,-402.8,0.00013698,2]
[360928549,1747152634551,-400.0,0.00013698,2]
[360928550,1747152634562,-400.0,0.00013698,2]
[360928551,1747152634574,-400.0,0.00013698,2]
[360928552,1747152634591,-1062.63660732,0.00013698,2]
[360928553,1747152634601,-400.0,0.00013698,2]
[360928554,1747152634614,-400.0,0.00013698,2]
[360928555,1747152634630,-400.0,0.00013698,2]
[360928556,1747152634640,-400.0,0.00013698,2]
[360928557,1747152634650,-400.0,0.00013698,2]
[360928558,1747152634659,-400.0,0.00013698,2]
[360928559,1747152634669,-424.41809084,0.00013698,2]
[360928560,1747152634679,-400.0,0.00013698,2]
[360928561,1747152634691,-422.45,0.00013698,2]
[360928562,1747152634701,-151.0,0.00013698,2]
[360928563,1747152634711,-400.0,0.00013698,2]
[360928564,1747152634720,-653.11,0.00013698,2]
[360928565,1747152634731,-151.0,0.00013698,2]
[360928566,1747152634740,-151.0,0.00013698,2]
[360928567,1747152634751,-646.94,0.00013698,2]
[360928568,1747152634761,-151.0,0.00013698,2]
[360928569,1747152634771,-639.31,0.00013698,2]
[360928570,1747152634781,-798.62,0.00013698,2]
[360928571,1747152634791,-400.0,0.00013698,2]
[360928572,1747152634801,-400.0,0.00013698,2]
[360928573,1747152634810,-400.0,0.00013698,2]
[360928574,1747152634820,-400.0,0.00013698,2]
[360928575,1747152634830,-400.0,0.00013698,2]
[360928576,1747152634840,-400.0,0.00013698,2]
[360928577,1747152634850,-400.0,0.00013698,2]
[360928578,1747152634860,-400.0,0.00013698,2]
[360928579,1747152634870,-400.0,0.00013698,2]
[360928580,1747152634879,-400.0,0.00013698,2]
[360928581,1747152634891,-151.449414,0.00013698,2]
[360928582,1747152634901,-411.09685289,0.00013698,2]
[360928583,1747152634910,-194.19443413,0.00013698,2]
[360928584,1747152634921,-411.25144019,0.00013698,2]
[360928585,1747152634931,-1522.38,0.00013698,2]
[360928586,1747152634941,-400.0,0.00013698,2]
[360928587,1747152634951,-400.0,0.00013698,2]
[360928588,1747152634961,-400.0,0.00013698,2]
[360928589,1747152634973,-400.0,0.00013698,2]
[360928590,1747152634983,-400.0,0.00013698,2]
[360928591,1747152634995,-400.0,0.00013698,2]
[360928592,1747152635006,-400.0,0.00013698,2]
[360928593,1747152635016,-400.0,0.00013698,2]
[360928594,1747152635026,-402.3913258,0.00013698,2]
[360928595,1747152635037,-400.0,0.00013698,2]
[360928596,1747152635047,-561.63,0.00013698,2]
[360928597,1747152635057,-400.0,0.00013698,2]
[360928598,1747152635067,-400.0,0.00013698,2]
[360928599,1747152635076,-400.0,0.00013698,2]
[360928600,1747152635087,-400.0,0.00013698,2]
[360928601,1747152635096,-504.2,0.00013698,2]
[360928602,1747152635105,-400.0,0.00013698,2]
[360928603,1747152635115,-489.79383217,0.00013698,2]
[360928604,1747152635124,-400.0,0.00013698,2]
[360928605,1747152635134,-400.0,0.00013698,2]
[360928606,1747152635144,-400.0,0.00013698,2]
[360928607,1747152635154,-400.0,0.00013698,2]
[360928608,1747152635163,-400.0,0.00013698,2]
[360928609,1747152635173,-403.09887857,0.00013698,2]
[360928610,1747152635183,-400.0,0.00013698,2]
[360928611,1747152635194,-400.0,0.00013698,2]
[360928612,1747152635204,-151.0,0.00013698,2]
[360928613,1747152635213,-151.0,0.00013698,2]
[360928614,1747152635223,-400.0,0.00013698,2]
[360928615,1747152635232,-400.0,0.00013698,2]
[360928616,1747152635242,-400.0,0.00013698,2]
[360928617,1747152635252,-400.0,0.00013698,2]
[360928618,1747152635261,-400.0,0.00013698,2]
[360928619,1747152635271,-400.0,0.00013698,2]
[360928620,1747152635281,-400.0,0.00013698,2]
[360928621,1747152635290,-143.60125893,0.00013698,2]
[360928640,1747152638001,-5000.0,0.00012697,2]
[360928642,1747152638014,-359.41176861,0.00013698,2]
[360928644,1747152638024,-400.0,0.00013698,2]
[360928647,1747152638035,-434.86,0.00013698,2]
[360928649,1747152638047,-400.0,0.00013698,2]
[360928651,1747152638057,-400.0,0.00013698,2]
[360928653,1747152638069,-501.33600552,0.00013698,2]
[360928655,1747152638078,-400.0,0.00013698,2]
[360928657,1747152638089,-400.0,0.00013698,2]
[360928659,1747152638099,-400.0,0.00013698,2]
[360928661,1747152638110,-400.0,0.00013698,2]
[360928663,1747152638120,-546.16224801,0.00013698,2]
[360928665,1747152638130,-400.0,0.00013698,2]
[360928668,1747152638140,-400.0,0.00013698,2]
[360928670,1747152638150,-768.71,0.00013698,2]
[360928672,1747152638161,-320.67325098,0.00013698,2]
[360928674,1747152638171,-420.67,0.00013698,2]
[360928676,1747152638181,-400.0,0.00013698,2]
[360928678,1747152638191,-400.0,0.00013698,2]
[360928680,1747152638202,-151.0,0.00013698,2]
[360928682,1747152638212,-4046.58,0.00013698,2]
[360928684,1747152638222,-400.0,0.00013698,2]
[360928686,1747152638232,-400.0,0.00013698,2]
[360928688,1747152638243,-505.20898102,0.00013698,2]
[360928691,1747152638254,-400.0,0.00013698,2]
[360928693,1747152638264,-400.0,0.00013698,2]
[360928695,1747152638274,-525.93,0.00013698,2]
[360928697,1747152638285,-1199.72,0.00013698,2]
[360928699,1747152638294,-400.0,0.00013698,2]
[360928701,1747152638305,-1611.76,0.00013698,2]
[360928703,1747152638315,-1526.53,0.00013698,2]
[360928705,1747152638326,-2038.26,0.00013698,2]
[360928707,1747152638336,-400.0,0.00013698,2]
[360928710,1747152638346,-636.57,0.00013698,2]
[360928712,1747152638357,-400.0,0.00013698,2]
[360928714,1747152638367,-400.0,0.00013698,2]
[360928716,1747152638377,-401.88652065,0.00013698,2]
[360928718,1747152638387,-654.14,0.00013698,2]
[360928720,1747152638396,-516.77491294,0.00013698,2]
[360928722,1747152638407,-400.0,0.00013698,2]
[360928724,1747152638417,-400.0,0.00013698,2]
[360928726,1747152638427,-400.0,0.00013698,2]
[360928728,1747152638437,-400.0,0.00013698,2]
[360928730,1747152638448,-273.12435143,0.00013698,2]
[360928732,1747152638459,-400.0,0.00013698,2]
[360928734,1747152638469,-400.0,0.00013698,2]
[360928737,1747152638480,-400.0,0.00013698,2]
[360928739,1747152638493,-635.27,0.00013698,2]
[360928741,1747152638503,-400.0,0.00013698,2]
[360928743,1747152638513,-400.0,0.00013698,2]
[360928745,1747152638523,-400.0,0.00013698,2]
[360928747,1747152638533,-405.98,0.00013698,2]
[360928749,1747152638545,-400.0,0.00013698,2]
[360928751,1747152638555,-659.62,0.00013698,2]
[360928753,1747152638565,-400.0,0.00013698,2]
[360928755,1747152638575,-1242.13,0.00013698,2]
[360928757,1747152638585,-400.0,0.00013698,2]
[360928759,1747152638595,-400.0,0.00013698,2]
[360928761,1747152638604,-400.0,0.00013698,2]
[360928764,1747152638615,-400.0,0.00013698,2]
[360928766,1747152638624,-400.0,0.00013698,2]
[360928768,1747152638634,-400.0,0.00013698,2]
[360928770,1747152638644,-400.0,0.00013698,2]
[360928772,1747152638654,-400.0,0.00013698,2]
[360928774,1747152638664,-400.0,0.00013698,2]
[360928776,1747152638674,-400.0,0.00013698,2]
[360928778,1747152638684,-400.0,0.00013698,2]
[360928780,1747152638693,-400.0,0.00013698,2]
[360928782,1747152638705,-400.0,0.00013698,2]
[360928784,1747152638715,-400.0,0.00013698,2]
[360928786,1747152638726,-1389.007936,0.00013698,2]
[360928788,1747152638736,-1389.007936,0.00013698,2]
[360928790,1747152638746,-400.0,0.00013698,2]
[360928792,1747152638756,-1389.007936,0.00013698,2]
[360928795,1747152638766,-400.0,0.00013698,2]
[360928797,1747152638776,-1218.15,0.00013698,2]
[360928799,1747152638786,-400.0,0.00013698,2]
[360928801,1747152638796,-178.717056,0.00013698,2]
[360928803,1747152638807,-423.01,0.00013698,2]
[360928805,1747152638817,-400.0,0.00013698,2]
[360928807,1747152638827,-478.83752486,0.00013698,2]
[360928809,1747152638837,-400.0,0.00013698,2]
[360928811,1747152638847,-1024.19,0.00013698,2]
[360928813,1747152638858,-500.0,0.00013698,2]
[360928815,1747152638868,-500.0,0.00013698,2]
[360928818,1747152638878,-500.0,0.00013698,2]
[360928820,1747152638888,-400.0,0.00013698,2]
[360928822,1747152638898,-500.0,0.00013698,2]
[360928824,1747152638908,-500.0,0.00013698,2]
[360928826,1747152638918,-500.0,0.00013698,2]
[360928828,1747152638928,-400.0,0.00013698,2]
[360928830,1747152638939,-500.0,0.00013698,2]
[360928832,1747152638950,-582.14980268,0.00013698,2]
[360928834,1747152638960,-1176.03,0.00013698,2]
[360928836,1747152638978,-410.27,0.00013698,2]
[360928838,1747152638998,-437.77,0.00013698,2]
[360928840,1747152639020,-622.88,0.00013698,2]
[360928842,1747152639037,-400.0,0.00013698,2]
[360928844,1747152639047,-1003.83,0.00013698,2]
[360928847,1747152639058,-400.0,0.00013698,2]
[360928849,1747152639070,-400.0,0.00013698,2]
[360928851,1747152639080,-400.0,0.00013698,2]
[360928853,1747152639092,-400.0,0.00013698,2]
[360928855,1747152639102,-899.21,0.00013698,2]
[360928857,1747152639113,-400.0,0.00013698,2]
[360928859,1747152639123,-502.04846223,0.00013698,2]
[360928861,1747152639132,-1406.56,0.00013698,2]
[360928865,1747152639372,-400.0,0.00013698,2]
[360928866,1747152639430,-699.1,0.00013698,2]
[360928867,1747152639440,-400.0,0.00013698,2]
[360928869,1747152639451,-400.0,0.00013698,2]
[360928870,1747152639461,-400.0,0.00013698,2]
[360928871,1747152639471,-400.0,0.00013698,2]
[360928872,1747152639480,-400.0,0.00013698,2]
[360928873,1747152639490,-400.0,0.00013698,2]
[360928874,1747152639499,-500.0,0.00013698,2]
[360928875,1747152639509,-400.0,0.00013698,2]
[360928876,1747152639519,-422.52,0.00013698,2]
[360928877,1747152639528,-400.0,0.00013698,2]
[360928878,1747152639538,-400.0,0.00013698,2]
[360928879,1747152639549,-466.33,0.00013698,2]
[360928880,1747152639559,-400.0,0.00013698,2]
[360928881,1747152639568,-400.0,0.00013698,2]
[360928882,1747152639578,-400.0,0.00013698,2]
[360928883,1747152639588,-151.0,0.00013698,2]
[360928884,1747152639598,-832.38,0.00013698,2]
[360928885,1747152639608,-403.63844082,0.00013698,2]
[360928886,1747152639617,-1000.0,0.00013698,2]
[360928887,1747152639627,-627.81,0.00013698,2]
[360928888,1747152639637,-400.0,0.00013698,2]
[360928889,1747152639647,-1123.08,0.00013698,2]
[360928890,1747152639657,-400.0,0.00013698,2]
[360928891,1747152639667,-400.0,0.00013698,2]
[360928892,1747152639677,-400.0,0.00013698,2]
[360928893,1747152639687,-400.0,0.00013698,2]
[360928894,1747152639698,-785.81,0.00013698,2]
[360928895,1747152639709,-2468.12,0.00013698,2]
[360928896,1747152639718,-206.22640275,0.00013698,2]
[360928897,1747152639729,-783.18,0.00013698,2]
[360928898,1747152639739,-151.0,0.00013698,2]
[360928899,1747152639749,-400.0,0.00013698,2]
[360928900,1747152639759,-305.79634054,0.00013698,2]
[360928901,1747152639769,-476.98,0.00013698,2]
[360928903,1747152639779,-400.0,0.00013698,2]
[360928905,1747152639789,-222.94299516,0.00013698,2]
[360928907,1747152639798,-400.0,0.00013698,2]
[360928909,1747152639808,-400.0,0.00013698,2]
[360928911,1747152639817,-400.0,0.00013698,2]
[360928912,1747152639828,-1888.82,0.00013698,2]
[360928915,1747152639837,-400.0,0.00013698,2]
[360928917,1747152639847,-400.0,0.00013698,2]
[360928919,1747152639858,-1339.5,0.00013698,2]
[360928921,1747152639868,-400.0,0.00013698,2]
[360928923,1747152639877,-400.0,0.00013698,2]
[360928924,1747152639887,-400.0,0.00013698,2]
[360928926,1747152639897,-400.0,0.00013698,2]
[360928929,1747152639907,-400.0,0.00013698,2]
[360928930,1747152639917,-400.0,0.00013698,2]
[360928931,1747152639927,-520.4,0.00013698,2]
[360928932,1747152639937,-300.0,0.00013698,2]
[360928934,1747152639949,-400.0,0.00013698,2]
[360928936,1747152639959,-941.96,0.00013698,2]
[360928937,1747152639973,-400.0,0.00013698,2]
[360928939,1747152639983,-400.0,0.00013698,2]
[360928941,1747152639992,-400.0,0.00013698,2]
[360928943,1747152640003,-1318.37,0.00013698,2]
[360928945,1747152640014,-400.0,0.00013698,2]
[360928947,1747152640024,-2756.06,0.00013698,2]
[360928949,1747152640034,-400.0,0.00013698,2]
[360928951,1747152640045,-400.0,0.00013698,2]
[360928953,1747152640054,-400.0,0.00013698,2]
[360928955,1747152640064,-435.39306691,0.00013698,2]
[360928957,1747152640074,-400.0,0.00013698,2]
[360928959,1747152640084,-401.41348252,0.00013698,2]
[360928961,1747152640094,-3362.16,0.00013698,2]
[360928963,1747152640104,-819.78,0.00013698,2]
[360928966,1747152640114,-1046.78,0.00013698,2]
[360928968,1747152640124,-428.19,0.00013698,2]
[360928970,1747152640134,-3761.31,0.00013698,2]